bitfinex-derivatives/quotes_BTCF0:USTF0_20250528
["timestamp","ask_amount","ask_price","bid_price","bid_amount"]
[1748444480543,0.2231363,107580.0,107570.0,0.53284]
[1748444480718,1.1203763,107580.0,107570.0,0.001]
[1748444480928,1.4803763,107580.0,107570.0,0.001]
[1748444482032,1.0368963,107580.0,107570.0,0.001]
[1748444482231,0.7639363,107580.0,107570.0,0.001]
[1748444482429,1.2074963,107580.0,107570.0,0.0342]
[1748444482627,1.2402763,107580.0,107570.0,0.0342]
[1748444483633,0.0373,107580.0,107570.0,0.001]
[1748444483837,1.3930763,107580.0,107570.0,0.001]
[1748444484432,1.4253763,107580.0,107570.0,0.001]
[1748444486225,0.1858536,107570.0,107560.0,0.00013952]
[1748444486441,0.96436061,107570.0,107560.0,2e-08]
[1748444486736,1.36455943,107570.0,107560.0,2e-08]
[1748444487037,1.80806867,107570.0,107560.0,2e-08]
[1748444487933,1.80906867,107570.0,107560.0,0.00100002]
[1748444489632,1.91276136,107570.0,107560.0,2e-08]
[1748444490036,1.86968511,107570.0,107560.0,2e-08]
[1748444490233,1.53355888,107570.0,107560.0,2e-08]
[1748444490634,1.61940511,107570.0,107560.0,2e-08]
[1748444491230,1.09039888,107570.0,107560.0,2e-08]
[1748444491633,1.53351888,107570.0,107560.0,2e-08]
[1748444491829,1.09039888,107570.0,107560.0,2e-08]
[1748444492130,1.42642878,107570.0,107560.0,2e-08]
[1748444492735,0.98330878,107570.0,107560.0,0.03150002]
[1748444493137,1.42638878,107570.0,107560.0,0.03150002]
[1748444493531,1.38328006,107570.0,107560.0,0.03150002]
[1748444493732,1.42638878,107570.0,107560.0,0.03150002]
[1748444493936,1.42638878,107570.0,107560.0,0.06430002]
[1748444494544,1.42618878,107570.0,107560.0,0.06430002]
[1748444494740,1.42618878,107570.0,107560.0,0.10985549]
[1748444494938,0.95080878,107570.0,107560.0,0.28147082]
[1748444495138,1.18380878,107570.0,107560.0,0.41588092]
[1748444495341,0.69770006,107570.0,107560.0,0.41588092]
[1748444495932,0.72770006,107570.0,107560.0,0.40162574]
[1748444496141,0.69770006,107570.0,107560.0,0.41588141]
[1748444496343,0.59770006,107570.0,107560.0,0.41588141]
[1748444496730,0.62770006,107570.0,107560.0,0.41588141]
[1748444497441,0.56550006,107570.0,107560.0,0.41588141]
[1748444498637,0.59670006,107570.0,107560.0,0.41588141]
[1748444498837,0.59670006,107570.0,107560.0,0.4158822]
[1748444499936,0.59670006,107570.0,107560.0,0.41588887]
[1748444500229,0.37964646,107570.0,107560.0,0.41588887]
[1748444500434,0.005,107570.0,107560.0,0.81104022]
[1748444500638,0.27887982,107590.0,107580.0,0.1858363]
[1748444500843,0.27887982,107590.0,107580.0,0.35475369]
[1748444501040,0.27887982,107590.0,107580.0,0.41835169]
[1748444501235,0.27887982,107590.0,107580.0,0.23251539]
[1748444501236,0.63967982,107590.0,107580.0,0.23251539]
[1748444501438,0.67277982,107590.0,107580.0,0.41835169]
[1748444501737,0.67277982,107590.0,107580.0,0.41834733]
[1748444502134,0.70407982,107590.0,107580.0,0.23251103]
[1748444502341,0.70807982,107590.0,107580.0,0.23251103]
[1748444502641,0.88807982,107590.0,107580.0,0.04485677]
[1748444502837,0.96166469,107590.0,107580.0,0.04485677]
[1748444503053,0.96166469,107590.0,107580.0,0.04585677]
[1748444503054,0.92247982,107590.0,107580.0,0.04585677]
[1748444503240,1.36503982,107590.0,107580.0,0.04585677]
[1748444503733,1.40822469,107590.0,107580.0,0.04585677]
[1748444504148,1.40822469,107590.0,107580.0,0.04585524]
[1748444504440,1.45139026,107590.0,107580.0,0.04585463]
[1748444504646,1.40822469,107590.0,107580.0,0.04585463]
[1748444505543,1.40822469,107590.0,107580.0,0.04585396]
[1748444505741,0.92247982,107590.0,107580.0,0.04585396]
[1748444506045,0.92247982,107590.0,107580.0,0.07835396]
[1748444506046,0.89207982,107590.0,107580.0,0.07835396]
[1748444506236,1.33439982,107590.0,107580.0,0.19850888]
[1748444506432,1.15439982,107590.0,107580.0,0.38434395]
[1748444506741,0.68077982,107590.0,107580.0,0.38434395]
[1748444506941,1.12297982,107590.0,107580.0,0.38434333]
[1748444507138,1.12297982,107590.0,107580.0,0.19850703]
[1748444507344,1.12297982,107590.0,107580.0,0.19850707]
[1748444507547,1.15497982,107590.0,107580.0,0.19850707]
[1748444508136,0.71277982,107590.0,107580.0,0.19850707]
[1748444508441,1.15521982,107590.0,107580.0,0.19850498]
[1748444508836,1.15513982,107590.0,107580.0,0.19850498]
[1748444509244,1.15505982,107590.0,107580.0,0.19850498]
[1748444509744,1.12305982,107590.0,107580.0,0.38434128]
[1748444509938,1.12305982,107590.0,107580.0,0.19850498]
[1748444510139,1.12325982,107590.0,107580.0,0.19850498]
[1748444510446,0.19396482,107590.0,107580.0,0.49250128]
[1748444510949,0.00813952,107590.0,107580.0,0.49250128]
[1748444511139,0.19395852,107590.0,107580.0,0.49250128]
[1748444511340,0.19395852,107590.0,107580.0,0.49249731]
[1748444511946,0.00813952,107590.0,107580.0,0.49249731]
[1748444512141,0.00813952,107590.0,107580.0,0.85329731]
[1748444513048,0.00813952,107590.0,107580.0,0.85329182]
[1748444513349,0.00813952,107590.0,107580.0,0.90504242]
[1748444513550,0.00813952,107590.0,107580.0,1.69019042]
[1748444513749,0.00139582,107610.0,107600.0,0.1858017]
[1748444514051,0.00139582,107610.0,107600.0,0.78915722]
[1748444514240,0.00139582,107610.0,107600.0,1.36762514]
[1748444514554,0.10085893,107630.0,107620.0,0.1857672]
[1748444514738,0.27299161,107630.0,107620.0,0.4283059]
[1748444514943,0.27159613,107630.0,107620.0,0.4891059]
[1748444515645,0.63639613,107630.0,107620.0,0.07502378]
[1748444515836,0.69779613,107630.0,107620.0,0.1951787]
[1748444516037,0.6119499,107630.0,107620.0,0.1951787]
[1748444516251,0.6089499,107630.0,107620.0,0.1951787]
[1748444516436,0.6089499,107630.0,107620.0,0.01422378]
[1748444516642,1.02081395,107630.0,107620.0,0.01422378]
[1748444516852,1.35081395,107630.0,107620.0,0.01422378]
[1748444517053,1.02081395,107630.0,107620.0,0.01422378]
[1748444517251,0.77081395,107630.0,107620.0,0.01422378]
[1748444517452,1.32081395,107630.0,107620.0,0.00608426]
[1748444517846,1.32181395,107630.0,107620.0,0.00608426]
[1748444518150,1.37904477,107630.0,107620.0,0.00608426]
[1748444518547,1.42219211,107630.0,107620.0,0.00608426]
[1748444518951,0.1857672,107620.0,107610.0,0.00013952]
[1748444519155,1.0536072,107620.0,107610.0,0.00013952]
[1748444519952,1.09095525,107620.0,107610.0,0.00013952]
[1748444520454,1.09103525,107620.0,107610.0,0.03213952]
[1748444520647,1.09103525,107620.0,107610.0,0.03513952]
[1748444521051,1.09103525,107620.0,107610.0,0.00313952]
[1748444521557,1.12835486,107620.0,107610.0,0.00513952]
[1748444522144,1.17148381,107620.0,107610.0,0.00791952]
[1748444522753,1.22871463,107620.0,107610.0,0.00791952]
[1748444522957,1.19136658,107620.0,107610.0,0.00791952]
[1748444523159,1.19136658,107620.0,107610.0,0.00278]
[1748444523160,1.28429058,107620.0,107610.0,0.00278]
[1748444523459,1.28429058,107620.0,107570.0,0.0309]
[1748444523460,0.1858361,107580.0,107570.0,0.0309]
[1748444523757,0.1858361,107580.0,107570.0,0.15105492]
[1748444523758,0.9915161,107580.0,107570.0,0.15105492]
[1748444523963,1.09332427,107580.0,107570.0,0.15105492]
[1748444524157,1.0555161,107580.0,107570.0,0.2488534]
[1748444524358,1.0556361,107580.0,107570.0,0.36900832]
[1748444524657,0.6948361,107580.0,107570.0,0.36900832]
[1748444524855,0.2498361,107580.0,107570.0,0.36900832]
[1748444525059,0.2528361,107580.0,107570.0,0.36900832]
[1748444526049,0.6136361,107580.0,107570.0,0.36900832]
[1748444526961,0.62731779,107580.0,107570.0,0.18315492]
[1748444527464,0.62731779,107580.0,107570.0,0.36900832]
[1748444527854,1.07255779,107580.0,107570.0,0.36900832]
[1748444529449,1.07255779,107580.0,107570.0,0.38320239]
[1748444529655,1.07255779,107580.0,107570.0,0.38320236]
[1748444530959,0.71131779,107580.0,107570.0,0.38320236]
[1748444532062,1.07211779,107580.0,107570.0,0.19734851]
[1748444532367,1.07211779,107580.0,107570.0,0.16524922]
[1748444533078,1.07211779,107580.0,107570.0,0.16524838]
[1748444533462,1.37021779,107580.0,107570.0,0.16524838]
[1748444533663,1.36965779,107580.0,107570.0,0.16524838]
[1748444534160,1.36965779,107580.0,107570.0,0.16524791]
[1748444535364,1.36965779,107580.0,107570.0,0.16524798]
[1748444535560,1.36965779,107580.0,107570.0,0.04509306]
[1748444535766,1.36965779,107580.0,107570.0,0.16524798]
[1748444535964,1.40115779,107580.0,107570.0,0.16524798]
[1748444536353,1.40115779,107580.0,107570.0,0.04509306]
[1748444536760,1.43905787,107580.0,107570.0,0.04509306]
[1748444537971,1.43905787,107580.0,107570.0,0.0309]
[1748444538166,1.43905787,107580.0,107570.0,0.04519637]
[1748444538464,1.43905332,107580.0,107570.0,0.04519637]
[1748444539260,1.14095332,107580.0,107570.0,0.0309]
[1748444539574,1.14095332,107580.0,107570.0,0.04519412]
[1748444539761,1.14095332,107580.0,107570.0,0.01429412]
[1748444540068,0.1858534,107570.0,107560.0,0.06711404]
[1748444540274,0.6099534,107570.0,107560.0,0.20156354]
[1748444540863,0.6099534,107570.0,107560.0,0.20156179]
[1748444541263,0.6109534,107570.0,107560.0,0.20356179]
[1748444541674,0.6109534,107570.0,107560.0,0.23536179]
[1748444542877,1.0562334,107570.0,107560.0,0.23534896]
[1748444543573,1.0562334,107570.0,107560.0,0.23534814]
[1748444544077,1.0562334,107570.0,107560.0,0.23534809]
[1748444544666,1.0562334,107570.0,107560.0,0.23535202]
[1748444545369,0.9090534,107570.0,107560.0,0.23536201]
[1748444545673,1.3538534,107570.0,107560.0,0.42123261]
[1748444545873,1.3538534,107570.0,107560.0,0.42123259]
[1748444547371,1.39074453,107570.0,107560.0,0.23536199]
[1748444547762,1.39074453,107570.0,107560.0,0.22106896]
[1748444548088,1.39074453,107570.0,107560.0,0.23537861]
[1748444549071,1.39074453,107570.0,107560.0,0.23548523]
[1748444549377,1.39074453,107570.0,107560.0,0.23548831]
[1748444550274,1.39074453,107570.0,107560.0,0.23548839]
[1748444550975,1.39074453,107570.0,107560.0,0.24543808]
[1748444551277,1.39074453,107570.0,107560.0,0.24543809]
[1748444551774,1.42766943,107570.0,107560.0,0.24543809]
[1748444552080,1.42766943,107570.0,107560.0,0.24545384]
[1748444552376,1.42766943,107570.0,107560.0,0.43132444]
[1748444552578,1.3907783,107570.0,107560.0,0.4313292]
[1748444552766,0.9459783,107570.0,107560.0,0.43133572]
[1748444552969,1.3902583,107570.0,107560.0,0.43133572]
[1748444553463,1.3902583,107570.0,107560.0,0.48300919]
[1748444553671,1.3901783,107570.0,107560.0,0.48307408]
[1748444554874,1.26843412,107570.0,107560.0,0.01452745]
[1748444555172,1.26843412,107570.0,107540.0,0.05187761]
[1748444555173,0.1858879,107550.0,107540.0,0.18492469]
[1748444555379,0.4815249,107550.0,107540.0,0.26273521]
[1748444555567,0.2228128,107550.0,107540.0,0.77439013]
[1748444555878,0.1858879,107550.0,107540.0,0.77439013]
[1748444556368,0.1858879,107550.0,107540.0,0.77438832]
[1748444556563,0.1868879,107550.0,107540.0,0.77438832]
[1748444557173,0.1868879,107550.0,107540.0,0.8451354]
[1748444557671,0.1868879,107550.0,107540.0,0.48833564]
[1748444558581,0.1868879,107550.0,107540.0,0.84913564]
[1748444558776,0.2194879,107550.0,107540.0,0.4883358]
[1748444558970,0.2516879,107550.0,107540.0,0.48833583]
[1748444560280,0.2516879,107550.0,107540.0,0.48833608]
[1748444560670,0.6124879,107550.0,107540.0,0.48833608]
[1748444561279,0.2516879,107550.0,107540.0,0.48833608]
[1748444561678,0.001,107550.0,107540.0,0.82217021]
[1748444561980,0.1868879,107550.0,107540.0,0.89109883]
[1748444562168,0.1868879,107550.0,107540.0,0.84731762]
[1748444562372,0.1868879,107550.0,107540.0,0.918306]
[1748444563069,0.9924479,107550.0,107540.0,0.1386838]
[1748444563275,0.9924479,107550.0,107540.0,0.17048426]
[1748444563276,1.09394406,107550.0,107540.0,0.17048426]
[1748444563880,1.09394406,107550.0,107540.0,0.01852934]
[1748444564081,1.09394406,107550.0,107540.0,0.08951772]
[1748444564268,1.09394406,107550.0,107540.0,0.05032934]
[1748444564781,0.64918406,107550.0,107540.0,0.01852934]
[1748444565076,1.13698724,107550.0,107540.0,0.01852934]
[1748444566383,1.13698724,107550.0,107540.0,0.01853117]
[1748444566985,1.13698724,107550.0,107540.0,0.02941842]
[1748444568482,1.13698724,107550.0,107540.0,0.004]
[1748444568673,1.13698724,107550.0,107540.0,0.02941595]
[1748444568874,1.43508724,107550.0,107540.0,0.02941595]
[1748444569081,1.43508724,107550.0,107540.0,0.02941606]
[1748444569382,1.43508724,107550.0,107540.0,0.02941532]
[1748444569588,1.13822724,107550.0,107540.0,0.02941532]
[1748444569772,1.13822724,107550.0,107540.0,0.06091532]
[1748444569968,1.43632724,107550.0,107540.0,0.06091532]
[1748444570167,1.43632724,107550.0,107540.0,0.06091522]
[1748444571283,1.43632724,107550.0,107540.0,0.06091342]
[1748444571481,1.43632724,107550.0,107540.0,0.06091341]
[1748444571682,1.43632724,107550.0,107540.0,0.05003115]
[1748444571879,1.43632724,107550.0,107540.0,0.06091341]
[1748444572481,1.43632724,107550.0,107540.0,0.06092951]
[1748444572782,1.43676724,107550.0,107540.0,0.06092951]
[1748444573189,1.39348406,107550.0,107540.0,0.06092951]
[1748444574188,0.94728406,107550.0,107540.0,0.06092951]
[1748444574394,1.39308406,107550.0,107540.0,0.06092951]
[1748444574688,1.43636724,107550.0,107540.0,0.02942951]
[1748444575481,1.43636724,107550.0,107540.0,0.06222953]
[1748444575786,1.43636724,107550.0,107540.0,0.02942965]
[1748444576689,1.43636724,107550.0,107540.0,0.01489838]
[1748444576881,1.43636724,107550.0,107540.0,0.02942978]
[1748444577289,1.43636724,107550.0,107540.0,0.01489838]
[1748444577593,1.43636724,107550.0,107540.0,0.02943004]
[1748444577784,1.13826724,107550.0,107540.0,0.02943004]
[1748444578104,1.13826724,107550.0,107540.0,0.01853143]
[1748444578285,1.13826724,107550.0,107540.0,0.02943001]
[1748444579089,1.13826724,107550.0,107540.0,0.06263001]
[1748444579593,1.13826724,107550.0,107540.0,0.02943001]
[1748444579785,1.13826724,107550.0,107540.0,0.02943009]
[1748444580182,1.13826724,107550.0,107540.0,0.01853148]
[1748444580389,1.13826724,107550.0,107540.0,0.02943005]
[1748444580595,1.48826724,107550.0,107540.0,0.02943005]
[1748444580799,1.04246724,107550.0,107540.0,0.02943004]
[1748444580989,1.48806724,107550.0,107540.0,0.06273004]
[1748444581995,1.45065952,107550.0,107540.0,0.06273004]
[1748444582191,1.48931216,107550.0,107540.0,0.06273004]
[1748444582390,1.48931216,107550.0,107540.0,0.06273003]
[1748444582992,1.48931216,107550.0,107540.0,0.0373]
[1748444583188,1.48931216,107550.0,107540.0,0.06273004]
[1748444583593,1.54702821,107550.0,107540.0,0.06273004]
[1748444583798,1.48931216,107550.0,107540.0,0.06273004]
[1748444584099,1.48934153,107550.0,107540.0,0.06273004]
[1748444584302,1.54705758,107550.0,107540.0,0.06273004]
[1748444584492,1.10145758,107550.0,107540.0,0.06273004]
[1748444584691,1.65657758,107550.0,107540.0,0.06273]
[1748444585606,1.65657758,107550.0,107540.0,0.06273002]
[1748444586101,1.65657758,107550.0,107540.0,0.06273004]
[1748444586288,1.65657758,107550.0,107540.0,0.06273003]
[1748444586494,1.48657758,107550.0,107540.0,0.06273003]
[1748444587498,1.48657758,107550.0,107540.0,0.06273004]
[1748444588189,1.48657758,107550.0,107540.0,0.06273003]
[1748444590196,1.68657758,107550.0,107540.0,0.0373]
[1748444590400,1.68657758,107550.0,107540.0,0.06273006]
[1748444590901,1.67541735,107550.0,107540.0,0.06273006]
[1748444591284,1.48541735,107550.0,107540.0,0.06273012]
[1748444591485,1.48541735,107550.0,107540.0,0.05183146]
[1748444591701,1.48541735,107550.0,107540.0,0.06273003]
[1748444592303,1.48541735,107550.0,107540.0,0.06273005]
[1748444592304,1.52847808,107550.0,107540.0,0.06273005]
[1748444592700,1.52847808,107550.0,107540.0,0.06273023]
[1748444593400,1.56374603,107550.0,107540.0,0.02543023]
[1748444593591,0.92227608,107550.0,107540.0,0.02543156]
[1748444593792,1.59247144,107550.0,107540.0,0.02543284]
[1748444594601,0.1859052,107540.0,107530.0,0.00291952]
[1748444594793,1.18060367,107540.0,107530.0,0.01381951]
[1748444595100,1.18060367,107540.0,107530.0,0.02835304]
[1748444595307,1.73560367,107540.0,107530.0,0.02835304]
[1748444596399,1.73660367,107540.0,107530.0,0.06075304]
[1748444596595,1.15120367,107540.0,107530.0,0.09385305]
[1748444596797,0.91550808,107540.0,107530.0,0.21700797]
[1748444597103,1.37922898,107540.0,107530.0,0.21700743]
[1748444597407,1.37922898,107540.0,107530.0,0.21688921]
[1748444597609,1.59922898,107540.0,107530.0,0.06533429]
[1748444598008,1.00116457,107540.0,107530.0,0.06533429]
[1748444598201,1.59938025,107540.0,107530.0,0.18548921]
[1748444598403,1.55608457,107540.0,107530.0,0.21668791]
[1748444598606,1.59926458,107540.0,107530.0,0.21668791]
[1748444598802,1.55596457,107540.0,107530.0,0.21668791]
[1748444599009,1.55596457,107540.0,107530.0,0.21668852]
[1748444599206,1.0444685,107540.0,107530.0,0.21668852]
[1748444599503,1.5558505,107540.0,107530.0,0.21668852]
[1748444600008,1.5558505,107540.0,107530.0,0.20215543]
[1748444600202,1.5558505,107540.0,107530.0,0.21668801]
[1748444601002,1.59915385,107540.0,107530.0,0.21668801]
[1748444601304,1.59915385,107540.0,107530.0,0.21668068]
[1748444601714,1.04447385,107540.0,107530.0,0.21668068]
[1748444601905,0.72677334,107540.0,107530.0,0.21668068]
[1748444602101,1.08349088,107540.0,107530.0,0.21668068]
[1748444602307,1.11449088,107540.0,107530.0,0.21668068]
[1748444602615,1.11449088,107540.0,107530.0,0.21649558]
[1748444603013,1.11429088,107540.0,107530.0,0.21649557]
[1748444603216,1.13429088,107540.0,107530.0,0.21649557]
[1748444603711,1.13427518,107540.0,107530.0,0.21649557]
[1748444604316,1.12555613,107540.0,107530.0,0.21649557]
[1748444604712,1.16407446,107540.0,107530.0,0.21649557]
[1748444605112,1.12551177,107540.0,107530.0,0.21680495]
[1748444605716,1.12551177,107540.0,107530.0,0.21680504]
[1748444606323,1.12483177,107540.0,107530.0,0.21680504]
[1748444606523,0.44460598,107540.0,107530.0,0.4546258]
[1748444606730,0.08380598,107540.0,107530.0,0.79761779]
[1748444607016,0.593174,107550.0,107540.0,0.1859052]
[1748444607219,0.63137393,107550.0,107540.0,0.44761544]
[1748444607723,0.67467631,107550.0,107540.0,0.44761544]
[1748444607931,0.232374,107550.0,107540.0,0.44761544]
[1748444608536,0.232374,107550.0,107540.0,0.44761256]
[1748444609027,0.593174,107550.0,107540.0,0.44761256]
[1748444609333,0.232374,107550.0,107540.0,0.44761273]
[1748444609530,0.233374,107550.0,107540.0,0.44961273]
[1748444610030,0.233374,107550.0,107540.0,0.48261273]
[1748444610334,0.52275658,107550.0,107540.0,0.48561273]
[1748444611424,0.52275658,107550.0,107540.0,0.48561265]
[1748444611825,0.5050602,107550.0,107540.0,0.48561265]
[1748444612021,0.50070149,107550.0,107540.0,0.48561265]
[1748444612330,0.50070149,107550.0,107540.0,0.59513265]
[1748444612627,0.03914237,107550.0,107540.0,0.59513263]
[1748444612833,0.1868879,107550.0,107540.0,0.59513263]
[1748444613527,0.1868879,107550.0,107540.0,0.68795199]
[1748444614025,0.1868879,107550.0,107540.0,0.68794986]
[1748444614232,0.1868879,107550.0,107540.0,0.68794928]
[1748444614634,0.1868879,107550.0,107540.0,0.59496528]
[1748444615026,0.1868879,107550.0,107540.0,0.59496302]
[1748444616122,0.1868879,107550.0,107540.0,0.59496107]
[1748444616325,0.1868879,107550.0,107540.0,0.59494413]
[1748444616633,0.1868879,107550.0,107540.0,0.5949424]
[1748444617231,0.1868879,107550.0,107540.0,0.59494241]
[1748444617827,0.1868879,107550.0,107540.0,0.58041393]
[1748444618028,0.1868879,107550.0,107540.0,0.59494241]
[1748444618226,0.1868879,107550.0,107540.0,0.58423524]
[1748444618430,0.1868879,107550.0,107540.0,0.59494087]
[1748444618628,0.1868879,107550.0,107540.0,0.59493952]
[1748444619228,0.001,107550.0,107540.0,1.04872352]
[1748444619528,0.001,107550.0,107540.0,1.05150352]
[1748444619729,0.34292211,107560.0,107550.0,0.185888]
[1748444619927,0.34292211,107560.0,107550.0,1.19843568]
[1748444620229,0.34292211,107560.0,107550.0,1.29140925]
[1748444620434,0.34292211,107560.0,107550.0,1.34319616]
[1748444620737,0.34292211,107560.0,107550.0,1.41403155]
[1748444621126,0.34292211,107560.0,107550.0,1.4033297]
[1748444621330,0.34292211,107560.0,107550.0,1.41502895]
[1748444621532,0.52879281,107560.0,107550.0,1.41502895]
[1748444621832,0.51863621,107560.0,107550.0,1.41802895]
[1748444622038,0.21399914,107560.0,107550.0,1.41802895]
[1748444622338,0.20528305,107560.0,107550.0,1.41802895]
[1748444622733,0.20528305,107560.0,107550.0,1.3471919]
[1748444622935,0.20528305,107560.0,107550.0,1.34738776]
[1748444623236,0.01941235,107560.0,107550.0,1.34738776]
[1748444624143,0.01801679,107560.0,107550.0,1.34738776]
[1748444625642,0.01801679,107560.0,107550.0,1.33649265]
[1748444625948,0.01801679,107560.0,107550.0,1.34738776]
[1748444626334,0.04931679,107560.0,107550.0,1.34738776]
[1748444626529,0.23518759,107560.0,107550.0,0.90482776]
[1748444626737,0.23518759,107560.0,107550.0,0.55885176]
[1748444626932,0.73678759,107560.0,107550.0,0.14857685]
[1748444627135,0.73678759,107560.0,107550.0,0.33446709]
[1748444627438,0.77439246,107560.0,107550.0,0.33446712]
[1748444628037,0.77439246,107560.0,107550.0,0.32357285]
[1748444628236,0.77439246,107560.0,107550.0,0.33447022]
[1748444628440,0.76567456,107560.0,107550.0,0.33447022]
[1748444630142,0.72806969,107560.0,107550.0,0.33447026]
[1748444630348,0.7656248,107560.0,107550.0,0.33447026]
[1748444630648,0.6556248,107560.0,107550.0,0.33447026]
[1748444631236,0.6556248,107560.0,107550.0,0.30904302]
[1748444631434,0.6556248,107560.0,107550.0,0.33446964]
[1748444631435,0.46539525,107560.0,107550.0,0.33446964]
[1748444631640,0.46539525,107560.0,107550.0,0.36466964]
[1748444631833,0.64010816,107560.0,107550.0,0.36466964]
[1748444632745,0.64010816,107560.0,107550.0,0.36466912]
[1748444633140,1.08178816,107560.0,107550.0,0.36466912]
[1748444633740,0.45423696,107560.0,107550.0,0.36466912]
[1748444633938,1.08166816,107560.0,107550.0,0.36466835]
[1748444634148,0.64010816,107560.0,107550.0,0.39586817]
[1748444634336,0.60255305,107560.0,107550.0,0.39586817]
[1748444634541,0.62481786,107560.0,107550.0,0.39586817]
[1748444634938,0.07814666,107560.0,107550.0,0.27671325]
[1748444635249,0.07814666,107560.0,107550.0,0.94655508]
[1748444635250,0.04062696,107560.0,107550.0,0.94655508]
[1748444635438,0.0308,107560.0,107550.0,0.94655508]
[1748444635644,0.69183952,107570.0,107560.0,0.1858712]
[1748444635846,0.46258488,107570.0,107560.0,0.37832251]
[1748444636149,0.64843878,107570.0,107560.0,0.39284958]
[1748444636446,0.46258488,107570.0,107560.0,0.39284958]
[1748444636944,0.46258488,107570.0,107560.0,0.39258329]
[1748444637251,0.64843878,107570.0,107560.0,0.4443702]
[1748444637437,0.64943878,107570.0,107560.0,0.44637056]
[1748444637847,0.68243878,107570.0,107560.0,0.44637056]
[1748444638643,0.64489342,107570.0,107560.0,0.44637056]
[1748444640047,0.63582882,107570.0,107560.0,0.45924071]
[1748444640737,0.63582882,107570.0,107560.0,0.45917204]
[1748444640941,0.63582882,107570.0,107560.0,0.4591731]
[1748444641143,0.63582882,107570.0,107560.0,0.45917356]
[1748444641345,0.63582882,107570.0,107560.0,0.45917357]
[1748444641546,0.63582882,107570.0,107560.0,0.44856607]
[1748444641750,0.63582882,107570.0,107560.0,0.45917132]
[1748444641937,0.62467238,107570.0,107560.0,0.43403946]
[1748444642142,0.62467238,107570.0,107560.0,0.43181828]
[1748444642343,0.62467238,107570.0,107560.0,0.45917183]
[1748444642653,0.62467238,107570.0,107560.0,0.45917185]
[1748444643351,0.0653,107570.0,107560.0,0.44912439]
[1748444643559,0.0653,107570.0,107560.0,0.44912409]
[1748444643740,0.0653,107570.0,107560.0,0.43459705]
[1748444643939,0.0323,107570.0,107560.0,0.44912308]
[1748444644143,0.001,107570.0,107560.0,0.3608]
[1748444644351,0.001,107570.0,107560.0,0.81542582]
[1748444644552,0.04834987,107580.0,107570.0,0.185854]
[1748444644853,0.04834987,107580.0,107570.0,0.64065783]
[1748444645045,0.04834987,107580.0,107570.0,0.67205783]
[1748444645446,0.23418657,107580.0,107570.0,0.67205783]
[1748444645845,0.59598657,107580.0,107570.0,0.67505783]
[1748444646247,0.59598657,107580.0,107570.0,0.67605829]
[1748444646450,0.59162929,107580.0,107570.0,0.67605829]
[1748444646960,0.60561544,107580.0,107570.0,0.04992429]
[1748444647148,0.6441537,107580.0,107570.0,0.20437819]
[1748444647457,0.68268546,107580.0,107570.0,0.20438048]
[1748444647752,0.68268546,107580.0,107570.0,0.2207539]
[1748444647950,0.68268546,107580.0,107570.0,0.23528074]
[1748444648144,0.68268546,107580.0,107570.0,0.004]
[1748444648452,0.68268546,107580.0,107570.0,0.01852684]
[1748444648651,0.6441472,107580.0,107570.0,0.01852684]
[1748444648852,0.185854,107570.0,107560.0,0.00023952]
[1748444649055,1.05708576,107570.0,107560.0,0.00023952]
[1748444649644,1.08948576,107570.0,107560.0,0.00023952]
[1748444650241,1.14724822,107570.0,107560.0,0.00023952]
[1748444650442,1.14724822,107570.0,107560.0,0.00323952]
[1748444651544,1.10871646,107570.0,107560.0,0.00323952]
[1748444651749,1.14822638,107570.0,107560.0,0.00323952]
[1748444652257,1.17982638,107570.0,107560.0,0.00323952]
[1748444653749,1.17982638,107570.0,107560.0,0.18911082]
[1748444654143,0.73922638,107570.0,107560.0,0.18911082]
[1748444654347,1.17942638,107570.0,107560.0,0.19011082]
[1748444654758,1.17942638,107570.0,107560.0,0.19011072]
[1748444654950,1.17942638,107570.0,107560.0,0.00423952]
[1748444655153,1.17942638,107570.0,107560.0,0.19011082]
[1748444655552,1.18042638,107570.0,107560.0,0.18711082]
[1748444655755,1.18042638,107570.0,107560.0,0.00123952]
[1748444656455,1.18042638,107570.0,107560.0,0.01212176]
[1748444656658,1.18042638,107570.0,107560.0,0.19799263]
[1748444656870,1.11331777,107570.0,107560.0,0.19799263]
[1748444657159,1.10460068,107570.0,107560.0,0.22949263]
[1748444657548,1.10460068,107570.0,107560.0,0.03273952]
[1748444657859,1.10460068,107570.0,107560.0,0.04337722]
[1748444658160,0.66468068,107570.0,107560.0,0.03273952]
[1748444658357,1.10444068,107570.0,107560.0,0.01186385]
[1748444658755,1.29444068,107570.0,107560.0,1.01186385]
[1748444659254,1.35220314,107570.0,107560.0,1.01186385]
[1748444659656,1.35220314,107570.0,107560.0,1.0118662]
[1748444660256,1.35220314,107570.0,107560.0,1.00123952]
[1748444660562,1.35222518,107570.0,107560.0,1.0118662]
[1748444660958,1.35222518,107570.0,107560.0,1.03931662]
[1748444661258,1.35222518,107570.0,107560.0,1.01213686]
[1748444661452,1.35222518,107570.0,107560.0,1.03960764]
[1748444661653,1.45918518,107570.0,107560.0,1.03960764]
[1748444661862,1.35254518,107570.0,107560.0,1.03960739]
[1748444662054,1.35254518,107570.0,107560.0,1.07070739]
[1748444662254,1.29478272,107570.0,107560.0,1.03233952]
[1748444662465,1.29478272,107570.0,107560.0,1.07059653]
[1748444663062,0.85470272,107570.0,107560.0,1.07059653]
[1748444663260,1.34366785,107570.0,107560.0,1.07059528]
[1748444663461,1.34366785,107570.0,107560.0,1.22910737]
[1748444663660,1.34366785,107570.0,107560.0,1.08976392]
[1748444663963,1.15386785,107570.0,107560.0,1.27563512]
[1748444664163,0.71374785,107570.0,107560.0,1.30733512]
[1748444664372,1.09610539,107570.0,107560.0,1.30733512]
[1748444664753,1.13462276,107570.0,107560.0,1.1105673]
[1748444665065,1.13462276,107570.0,107560.0,1.30733434]
[1748444665261,1.13462276,107570.0,107560.0,1.10693538]
[1748444665456,1.0960908,107570.0,107560.0,1.10693538]
[1748444665656,1.0958908,107570.0,107560.0,1.10254836]
[1748444665861,1.0958908,107570.0,107560.0,1.08976382]
[1748444666167,1.0958908,107570.0,107560.0,1.05776382]
[1748444666968,1.0958908,107570.0,107560.0,1.04686799]
[1748444667165,1.0958908,107570.0,107560.0,1.05776434]
[1748444667586,1.0958908,107570.0,107560.0,1.05413224]
[1748444667761,1.086825,107570.0,107560.0,1.03581773]
[1748444667964,1.086825,107570.0,107560.0,1.04864288]
[1748444668167,1.086825,107570.0,107560.0,1.05024669]
[1748444668473,1.086825,107570.0,107560.0,1.04855726]
[1748444668768,1.086825,107570.0,107560.0,1.07398294]
[1748444668969,1.086825,107570.0,107560.0,1.06114341]
[1748444669169,0.79763546,107570.0,107560.0,1.00401755]
[1748444669470,1.770153,107570.0,107560.0,1.00033027]
[1748444669657,1.17914822,107570.0,107560.0,1.00033027]
[1748444669859,1.30278022,107570.0,107560.0,1.00045109]
[1748444670057,0.81367023,107570.0,107560.0,0.96199249]
[1748444670363,0.81367023,107570.0,107560.0,1.00036186]
[1748444670364,1.36039023,107570.0,107560.0,1.00036186]
[1748444670666,1.36039023,107570.0,107560.0,1.00036155]